Cogmind - Beta 12 @@@ ROGUE MODE // 2023.07.15 @ 17:08:16 Player: Shadow Pussy wanter Result: Destroyed by G-73 Enforcer with Heavy Laser Performance ------------- Evolutions (7) 3500 Regions Visited (25) 5000 Robots Destroyed (250) 1250 Value Destroyed (11367) 11367 Prototype IDs (57) 1140 Alien Tech Used (11) 2200 Bonus (16788) 16788 TOTAL SCORE: 41245 Bonus ------- Triggered Max Security 1000 High Alert Combat Kills 759 Follower Combat Kills 2788 Met Data Miner 300 Met Imprinter 300 Was Imprinted 300 Met Warlord at Base 500 MAIN.C Attacked Warlord 500 Warlord Defense Kills 1272 A7 Reached Mainframe 300 Used Core Reset Matrix 3000 Scanned by Researcher 500 Pursued by Intercept 500 Integrated Exoskeleton 5000 Friendly Fire -231 Cogmind --------- Core Integrity 0/1300 Matter 216/300 Energy 670/690 System Corruption 14% Temperature Cool (56) Movement Walking (30) Location -3/Section 7 Parts ------- > --- POWER (1) -------- Particle Reactor > --- PROPULSION (3) --- Sigix Exoskeleton > --- UTILITY (3) ------ Experimental Force Field > --- WEAPON (2) ------- Sigix Broadsword > --- INVENTORY (5) ---- Sigix Sheargun Sigix Sheargun Core Stripper Peak State ------------ > --- POWER ------------ Particle Reactor > --- PROPULSION ------- Sigix Exoskeleton > --- UTILITY ---------- Huge Storage Unit Experimental Force Field Spacefold Activator > --- WEAPON ----------- Sigix Broadsword > --- INVENTORY -------- Experimental Energy Well Experimental Matter Compressor Improved Transmission Jammer Experimental Focal Shield Thermal Barrier Experimental EM Disruption Field Phasing AFG Sigix Sheargun Sigix Sheargun Compact HERF Cannon Enhanced Nova Cannon Hardcell Cannon Compact Mass Driver Graviton Cannon Long-range Missile Launcher Core Stripper [Rating: 230] Favorites ----------- Power Cooled Ion Engine Engine Cooled Ion Engine Power Core Neutrino Core Reactor Light Quantum Reactor Propulsion Armored Treads Treads Armored Treads Leg Aluminum Leg Wheel Armored Huge Wheel Utility Advanced Targeting Computer Device Advanced Sensor Array Storage Huge Storage Unit Processor Advanced Targeting Computer Hackware Hacking Suite Protection Layered Medium Armor Plating Artifact Phase Armor Weapon Neutron Cannon Energy Gun Force Rifle Energy Cannon Neutron Cannon Ballistic Gun Enhanced Autogun Ballistic Cannon Flak Cannon Launcher Rocket Launcher Impact Weapon Power Maul Slashing Weapon Sigix Broadsword Build | -11 -10 -9 -8 -7 -7 -7 -7 -6 -6 -6 -6 -5 -5 -5 -5 -5 -5 -4 -4 -4 -4 -3 -3 -3 -3 ------- Run | Jun Mat Mat Mat Fac Low Low Zio Pro Fac Low Dat Pro Fac Ext Cet Arc Hub Fac Upp Upp War Pro Res Qua Sec Slots Evolved 14 | . . 2 2 2 . . . . 2 . . . 2 . . . . 2 . . . . 2 . . Power 2 | . . . . . . . . . 1 . . . . . . . . . . . . . 1 . . Propulsion 4 | . . 2 . . . . . . . . . . . . . . . 2 . . . . . . . Utility 7 | . . . 2 2 . . . . 1 . . . 2 . . . . . . . . . . . . Weapon 1 | . . . . . . . . . . . . . . . . . . . . . . . 1 . . Parts Attached 471 | 6 9 22 40 54 2 . 6 3 45 . 2 1 15 17 10 6 2 8 10 6 26 27 55 63 36 Power 34 | 1 1 1 3 1 . . . . 4 . . . . 4 2 3 . . . . 1 2 6 1 4 Engine 13 | 1 1 1 3 1 . . . . 4 . . . . 2 . . . . . . . . . . . Core 6 | . . . . . . . . . . . . . . 2 1 . . . . . . . . . 3 Reactor 15 | . . . . . . . . . . . . . . . 1 3 . . . . 1 2 6 1 1 Propulsion 73 | 2 3 13 18 10 . . . . 7 . . . 1 1 2 . 1 2 . . 1 . 7 5 . Treads 63 | . . 10 18 9 . . . . 6 . . . 1 1 2 . 1 2 . . 1 . 7 5 . Leg 7 | 2 3 1 . . . . . . 1 . . . . . . . . . . . . . . . . Wheel 3 | . . 2 . 1 . . . . . . . . . . . . . . . . . . . . . Hover . | . . . . . . . . . . . . . . . . . . . . . . . . . . Flight . | . . . . . . . . . . . . . . . . . . . . . . . . . . Utility 237 | 1 2 1 10 29 1 . 4 1 24 . . . 9 9 5 . 1 6 6 6 11 16 36 38 21 Device 168 | . 1 . 1 19 1 . 3 1 18 . . . 7 2 3 . 1 5 5 6 9 13 32 24 17 Storage 11 | 1 1 1 2 . . . . . 1 . . . . . . . . . . . . . 2 2 1 Processor 10 | . . . 1 3 . . . . 1 . . . 1 1 . . . . . . 1 . 1 1 . Hackware 1 | . . . . 1 . . . . . . . . . . . . . . . . . . . . . Protection 42 | . . . 6 6 . . 1 . 4 . . . 1 6 2 . . 1 1 . 1 3 1 9 . Artifact 5 | . . . . . . . . . . . . . . . . . . . . . . . . 2 3 Weapon 127 | 2 3 7 9 14 1 . 2 2 10 . 2 1 5 3 1 3 . . 4 . 13 9 6 19 11 Energy Gun 29 | 2 1 1 . 2 . . . . . . . . 3 2 1 . . . . . 1 1 4 9 2 Energy Cannon 23 | . . . . . . . . . . . . . . 1 . 3 . . 2 . 7 4 . 2 4 Ballistic Gun 20 | . . 5 8 2 . . . . 4 . 1 . . . . . . . . . . . . . . Ballistic Cannon 15 | . . . . 6 . . 1 1 2 . . . . . . . . . . . . . 1 2 2 Launcher 17 | . 2 . 1 . 1 . 1 . . . . 1 . . . . . . 2 . 4 4 1 . . Special Weapon . | . . . . . . . . . . . . . . . . . . . . . . . . . . Impact Weapon 18 | . . 1 . 4 . . . 1 4 . 1 . 2 . . . . . . . 1 . . 4 . Slashing Weapon 5 | . . . . . . . . . . . . . . . . . . . . . . . . 2 3 Piercing Weapon . | . . . . . . . . . . . . . . . . . . . . . . . . . . Special Melee Weapon . | . . . . . . . . . . . . . . . . . . . . . . . . . . Unidentified Prototypes 49 | . . 2 2 . . . 1 . 1 . . . 2 3 5 . . . . . 7 . 9 15 2 Corrupted Parts 4 | . . . . . . . . . . . . . . . 3 . . . . . . 1 . . . System Corruption 39 | . . . . . . . . . . . . . . . 30 . . . . . . 9 . . . Parts Lost 24 | . 1 3 5 8 . . . . 3 . . . . . . . . . . . 1 2 . 1 . Power 3 | . . 1 . 1 . . . . . . . . . . . . . . . . . . . 1 . Propulsion 9 | . . 2 2 3 . . . . 1 . . . . . . . . . . . . 1 . . . Utility 6 | . . . 2 2 . . . . 1 . . . . . . . . . . . . 1 . . . Weapon 6 | . 1 . 1 2 . . . . 1 . . . . . . . . . . . 1 . . . . Highest Loss Streak 3 | . 1 2 3 3 . . . . 2 . . . . . . . . . . . 1 1 . 1 . To Critical Strikes 1 | . . . 1 . . . . . . . . . . . . . . . . . . . . . . Average Slot Usage (%) 92 | . 96 93 98 98 92 92 90 92 97 100 87 100 99 100 93 88 88 89 89 89 85 80 87 82 70 Engine 5 | . 13 10 9 6 7 7 7 7 12 13 13 13 11 3 . . . . . . . . . . . Reactor 2 | . . . . . . . . . . . . . . . . 6 11 10 10 10 6 5 14 12 5 Treads 21 | . . 27 35 28 15 15 15 15 21 26 26 26 23 23 16 11 11 21 21 21 20 17 17 19 10 Leg 1 | . 27 7 . . . . . . 1 . . . . . . . . . . . . . . . 2 Wheel 1 | . . 2 . . 7 7 7 7 1 . . . . . . . . . . . . . . . . Device 13 | . 12 11 4 9 14 15 15 7 11 13 13 13 22 15 17 17 17 15 20 21 20 18 18 11 9 Storage 6 | . 14 11 9 7 7 7 7 7 6 6 6 6 5 5 5 5 5 5 5 5 5 5 4 5 5 Processor 16 | . . . 7 23 23 23 23 23 20 20 20 20 17 17 17 17 17 15 15 15 15 15 14 15 14 Protection 5 | . . . 15 2 . . . 7 6 6 6 6 5 12 11 11 11 10 5 5 5 6 4 2 . Energy Gun 2 | . 25 5 . . . . . . . . . . 9 8 5 1 . . . . . 1 5 4 5 Energy Cannon 2 | . . . . . . . . . . . . . . 1 5 9 11 10 9 10 8 7 4 . 3 Ballistic Gun 3 | . . 12 17 5 . . . . 3 6 . 6 . . . . . . . . . . . . . Ballistic Cannon 2 | . . . . 6 12 7 6 7 6 . . . . . . . . . . . . . 2 2 2 Launcher 1 | . 2 3 . . 2 7 6 1 . . . 4 . . . . . . . . 1 1 . . . Naked Turns . | . . . . . . . . . . . . . . . . . . . . . . . . . . Heaviest Build 214 | 13 31 32 101 112 108 100 119 107 133 125 125 129 133 150 143 154 154 160 159 153 159 157 176 214 214 Greatest Support 220 | 20 20 80 83 107 28 28 28 28 90 90 90 90 90 90 160 160 160 208 208 208 208 203 206 220 220 Greatest Overweight (x) 4 | 1 2 3 1 3 3 3 4 3 4 1 1 1 1 1 1 . . . . . . . 1 1 2 Average Overweight (x) 1 | . . . . 1 3 3 3 3 1 1 1 1 1 1 . . . . . . . . . . . Largest Inventory Capacity 25 | 8 15 15 25 25 25 25 25 25 25 25 25 25 25 25 25 25 25 25 25 25 25 25 25 25 25 Average Capacity 23 | 7 10 15 22 25 25 25 25 25 25 25 25 25 25 25 25 25 25 25 25 25 25 25 25 25 24 Most Carried 25 | 6 8 15 25 25 25 25 25 25 25 25 25 25 25 25 25 25 25 25 25 25 25 25 25 25 25 Average Carried 23 | 2 7 13 21 24 25 25 24 25 24 25 25 25 24 24 25 24 25 23 25 25 24 24 24 24 22 Final Capacity 25 | 8 15 15 25 25 25 25 25 25 25 25 25 25 25 25 25 25 25 25 25 25 25 25 25 25 5 Final Carried 25 | 6 8 15 25 25 25 25 25 25 25 25 25 25 25 25 25 25 25 25 25 25 25 24 25 25 4 Class Distribution -------------------- 33% | Scavenger-Mutant 25% | Mutant 16% | Skirmisher 8% | Scavenger-Skirmisher 4% | Assassin 4% | Alien-Mutant Dominant Class ---------------- Mutant | -10/Materials Mutant | -9/Materials Scavenger-Mutant | -8/Materials Mutant | -7/Factory Skirmisher | -7/Lower Caves Mutant | -7/Lower Caves Skirmisher | -7/Zion Mutant | -6/Proximity Caves Skirmisher | -6/Factory Assassin | -6/Lower Caves Mutant | -6/Data Miner Mutant | -5/Proximity Caves Skirmisher | -5/Factory Scavenger-Mutant | -5/Extension Scavenger-Mutant | -5/Cetus Scavenger-Mutant | -5/Archives Scavenger-Mutant | -5/Hub_04(d) Scavenger-Mutant | -4/Factory Scavenger-Skirmisher | -4/Upper Caves Scavenger-Skirmisher | -4/Upper Caves Scavenger-Mutant | -4/Warlord Scavenger-Mutant | -3/Proximity Caves Scavenger-Skirmisher | -3/Research Alien-Mutant | -3/Quarantine Alien-Mutant | -3/Section 7 Resources | -11 -10 -9 -8 -7 -7 -7 -7 -6 -6 -6 -6 -5 -5 -5 -5 -5 -5 -4 -4 -4 -4 -3 -3 -3 -3 ----------- Run | Jun Mat Mat Mat Fac Low Low Zio Pro Fac Low Dat Pro Fac Ext Cet Arc Hub Fac Upp Upp War Pro Res Qua Sec Matter Collected 10079 | 94 322 676 1748 1091 361 143 45 107 770 30 . 232 110 200 110 85 25 78 220 83 420 244 912 947 1026 Remotely . | . . . . . . . . . . . . . . . . . . . . . . . . . . Salvage Created 10139 | . 334 631 2524 933 70 . . 172 448 . . . . 90 31 249 50 78 216 183 320 361 753 889 1807 Parts 484 | . 34 42 142 46 2 . . 5 24 . . . . 3 . 8 . 4 5 10 11 15 33 37 63 Haulers Intercepted 10 | . 1 4 5 . . . . . . . . . . . . . . . . . . . . . . Recyclers Shooed 12 | . 1 . 6 3 . . . . 2 . . . . . . . . . . . . . . . . Parts Field Recycled . | . . . . . . . . . . . . . . . . . . . . . . . . . . Retrieved Matter . | . . . . . . . . . . . . . . . . . . . . . . . . . . Parts Self-Destructed 68 | . . . . . 2 4 . 15 . . . 10 . . . . . . 7 16 . 14 . . . Prevented 7 | . . . . . . . . 1 . . . 6 . . . . . . . . . . . . . Kills | -11 -10 -9 -8 -7 -7 -7 -7 -6 -6 -6 -6 -5 -5 -5 -5 -5 -5 -4 -4 -4 -4 -3 -3 -3 -3 ------- Run | Jun Mat Mat Mat Fac Low Low Zio Pro Fac Low Dat Pro Fac Ext Cet Arc Hub Fac Upp Upp War Pro Res Qua Sec Combat Hostiles Destroyed 191 | . 7 14 38 23 3 . . 4 10 . . . . 1 . 3 1 1 7 3 13 10 10 11 32 Melee 8 | . . 1 . . . . . 1 1 . . . . . . . . . . . . . . 1 4 Guns 64 | . 4 4 38 6 . . . . . . . . . 1 . 1 . . . . . . 4 4 2 Cannons 71 | . . . . 15 . . . 1 8 . . . . . . 2 . . 4 3 1 6 4 2 25 AOE 40 | . 3 8 . 1 3 . . 2 . . . . . . . . . . 3 . 12 4 2 2 . Classes Destroyed 22 | . 6 2 6 1 . . . 1 . . . . . . . . . . . . 2 1 . 1 2 Worker 14 | . . . 7 1 . . . . 1 . . . . . . . . . . . . . . 4 1 Builder 7 | . 1 . 2 2 . . . . 1 . . . . . . . . . . . . . . 1 . Tunneler 2 | . . 1 . 1 . . . . . . . . . . . . . . . . . . . . . Hauler 10 | . 1 4 5 . . . . . . . . . . . . . . . . . . . . . . Recycler 10 | . 2 1 4 3 . . . . . . . . . . . . . . . . . . . . . Mechanic 1 | . . . 1 . . . . . . . . . . . . . . . . . . . . . . Operator 2 | . . . 2 . . . . . . . . . . . . . . . . . . . . . . Drone 2 | . . . . . . . . . . . . . . . . . . . . . . 2 . . . Watcher 13 | . 1 2 4 . . . . . . . . . . . 1 . . . . . . . 2 1 2 Swarmer 38 | . 6 8 7 4 . . . . 1 . . . . . . . . . . . 6 . . 3 3 Saboteur 1 | . . . . . . . . . . . . . . . . . . . . . . . . . 1 Grunt 52 | . 1 2 17 5 3 . . 1 2 . . . . . . . . . 3 . 2 3 4 . 9 Brawler 8 | . . . 2 . . . . 1 1 . . . . . . . . . 1 . 2 1 . . . Duelist 5 | . . . 1 1 . . . . . . . . . . . . . . . . . . . . 3 Protector 2 | . . . . . . . . . . . . . . . . . . . . . 2 . . . . Sentry 29 | . . 4 8 5 . . . . 3 . . . . 1 . 3 . 1 . 1 . . 2 . 1 Hunter 12 | . . . 3 3 . . . . . . . . . . . . 1 . 1 2 . 2 . . . Programmer 36 | . . . . 5 . . . 1 3 . . . . . . . . . 2 . . 2 4 7 12 Heavy 2 | . . . . . . . . . . . . . . . . . . . . . . . . . 2 S7 Guard 1 | . . . . . . . . . . . . . . . . . . . . . . . . . 1 Striker 1 | . . . . . . . . . . . . . . . . . . . . . 1 . . . . Fortress 1 | . . . . . . . . . . . . . . . . . . . . . . . . 1 . Fireman 1 | . . . . . . . . 1 . . . . . . . . . . . . . . . . . Best Kill Streak 11 | . 3 9 8 8 3 . . 4 3 . . . . 1 1 2 1 1 4 2 5 3 4 3 11 Combat Bots Only 8 | . 3 8 5 6 3 . . 4 3 . . . . 1 . 2 1 1 4 2 5 3 4 3 5 Max Kills in Single Turn 5 | . 2 5 2 2 1 . . 1 1 . . . . 1 1 1 1 1 2 1 4 1 2 2 2 Gunslinging . | . . . . . . . . . . . . . . . . . . . . . . . . . . Exploded 5 | . 2 5 . 1 1 . . 1 . . . . . . . . . . 2 . 4 1 2 2 . Melee 1 | . . 1 . . . . . 1 1 . . . . . . . . . . . . . . 1 1 Uniques/NPCs Destroyed . | . . . . . . . . . . . . . . . . . . . . . . . . . . Combat | -11 -10 -9 -8 -7 -7 -7 -7 -6 -6 -6 -6 -5 -5 -5 -5 -5 -5 -4 -4 -4 -4 -3 -3 -3 -3 -------- Run | Jun Mat Mat Mat Fac Low Low Zio Pro Fac Low Dat Pro Fac Ext Cet Arc Hub Fac Upp Upp War Pro Res Qua Sec Damage Taken 16460 | . 444 588 2216 2027 162 64 . 173 623 . . 170 58 457 132 381 178 110 238 291 1385 1080 611 765 4307 Core 2287 | . 84 138 239 176 24 . . . 59 . . 34 . . . 72 . . . 18 122 25 58 81 1157 Absorbed by Shields 5533 | . . . . 435 . . . 17 147 . . . 20 152 49 143 65 41 91 108 558 108 577 604 2418 Reduced by Siege Mode 399 | . . . . . . . . . . . . . . . . . . . 13 23 . 61 46 38 218 Redirected to Core 455 | . . . . . . . . . . . . . . . . . . . . . . . . 65 390 Regen/Repaired (Parts) 598 | . 43 . 107 96 . . . . . . . . . . . . . . . . 285 . . 3 64 Core Remaining (%) 78 | 100 66 65 56 . . . . 71 . . . 89 . . . . 92 . . . . 85 . . . Volleys Fired 673 | . 38 26 191 80 6 . . 6 18 . . 5 1 15 10 15 1 3 16 10 38 32 43 30 89 Largest 3 | . 2 2 2 2 1 . . 2 2 . . 1 2 2 2 2 2 2 2 2 2 2 3 3 3 Hottest 284 | . 90 79 50 110 33 . . 88 88 . . 39 160 170 240 196 196 196 196 180 196 188 274 261 284 Shots Fired 1309 | . 71 48 373 151 7 . . 7 36 . . 5 2 30 18 28 2 6 30 21 65 54 85 78 192 Gun 789 | . 66 44 373 66 . . . . 12 . . 1 2 25 10 6 . . . . . 7 45 62 70 Cannon 474 | . . . . 85 1 . . 4 24 . . . . 5 8 22 2 6 25 21 54 39 40 16 122 Launcher 46 | . 5 4 . . 6 . . 3 . . . 4 . . . . . . 5 . 11 8 . . . Special . | . . . . . . . . . . . . . . . . . . . . . . . . . . Kinetic 627 | . . 40 373 126 1 . . 4 36 . . 1 . . . . . . . . . . 16 13 17 Thermal 582 | . 66 4 . . . . . . . . . . 2 30 18 28 2 6 25 21 54 46 69 65 146 Explosive 46 | . 5 4 . . 6 . . 3 . . . 4 . . . . . . 5 . 11 8 . . . Electromagnetic 25 | . . . . 25 . . . . . . . . . . . . . . . . . . . . . Slashing 4 | . . . . . . . . . . . . . . . . . . . . . . . . . 4 Entropic 25 | . . . . . . . . . . . . . . . . . . . . . . . . . 25 Robot Hit Streak 41 | . 8 38 16 26 5 . . 5 22 . . 1 3 8 10 22 1 3 8 10 12 21 7 41 37 Robot Miss Streak 10 | . 3 2 4 6 1 . . 10 5 . . 2 . 3 2 1 1 1 1 1 4 1 2 2 2 Penetration Max 1 | . . . . . . . . . 1 . . . . . . . . . . . . . . . . Secondary Targets 2 | . . . 1 . . . . . . . . . . 1 . . . . . . . . . . . Max Gunslinging Chain 1 | . . . 1 . . . . . . . . . . 1 . . . . . . . . . . . Shots Hit Robots 976 | . 43 45 272 133 4 . . 7 33 . . 1 2 21 13 25 1 4 17 11 39 32 45 67 161 Core Hits 532 | . 19 24 106 112 7 . . 10 34 . . 2 . 7 3 8 . 1 16 6 51 26 19 21 60 Critical Kills 4 | . . . . . . . . . . . . . . 1 . . . 1 . . . . . 1 1 Critical Parts Destroyed 10 | . . . 2 1 . . . 1 4 . . . . 1 . . . . . . . . . 1 . Critical Strikes 32 | . 1 . 3 1 . . . 1 4 . . . . 2 . . . 1 . . . . 2 2 15 Burn 1 | . 1 . . . . . . . . . . . . . . . . . . . . . . . . Meltdown 2 | . . . . . . . . . . . . . . . . . . 1 . . . . . . 1 Destroy 6 | . . . 3 1 . . . . . . . . . 2 . . . . . . . . . . . Blast 5 | . . . . . . . . . . . . . . . . . . . . . . . 2 . 3 Smash 7 | . . . . . . . . 1 4 . . . . . . . . . . . . . . 2 . Sever 2 | . . . . . . . . . . . . . . . . . . . . . . . . . 2 Sunder 9 | . . . . . . . . . . . . . . . . . . . . . . . . . 9 Melee Attacks 73 | . . 6 . 14 . . . 1 16 . . . . . . . . . . . 8 . . 7 21 Kinetic 1 | . . . . . . . . . . . . . . . . . . . . . . . . 1 . Impact 49 | . . 6 . 14 . . . 1 16 . . . . . . . . . . . 8 . . 4 . Slashing 23 | . . . . . . . . . . . . . . . . . . . . . . . . 2 21 Piercing . | . . . . . . . . . . . . . . . . . . . . . . . . . . Sneak Attacks 4 | . . . . . . . . . 3 . . . . . . . . . . . . . . 1 . Combat Hostiles 2 | . . . . . . . . . 2 . . . . . . . . . . . . . . . . Follow-up Attacks . | . . . . . . . . . . . . . . . . . . . . . . . . . . Damage Inflicted 34964 | . 689 1242 4588 2887 352 . . 580 1342 . . 289 46 635 429 875 48 165 1643 469 3837 1808 1759 3113 8168 Guns 12307 | . 473 572 4539 1046 . . . . 124 . . . 46 483 193 191 . . . . . 148 810 1707 1975 Cannons 13064 | . . . . 1704 . . . 29 659 . . . . 152 236 684 34 165 634 469 1218 803 783 748 4746 Explosions 6953 | . 215 437 . 137 352 . . 504 . . . 289 . . . . . . 1009 . 2619 857 166 368 . Melee 2516 | . . 218 . . . . . 34 527 . . . . . . . . . . . . . . 290 1447 Ramming 124 | . 1 15 49 . . . . 13 32 . . . . . . . 14 . . . . . . . . Kinetic 9820 | . . 501 4539 2313 . . . 29 783 . . . . . . . . . . . . . 396 608 651 Thermal 13775 | . 473 71 . 137 . . . . . . . . 46 635 429 875 34 165 634 469 1218 951 1363 2031 4244 Explosive 6282 | . 215 437 . . 352 . . 504 . . . 289 . . . . . . 1009 . 2619 857 . . . Electromagnetic 621 | . . . . 437 . . . . . . . . . . . . . . . . . . . 184 . Impact 911 | . . 218 . . . . . 34 527 . . . . . . . . . . . . . . 132 . Slashing 1732 | . . . . . . . . . . . . . . . . . . . . . . . . 158 1574 Piercing . | . . . . . . . . . . . . . . . . . . . . . . . . . . Entropic 1699 | . . . . . . . . . . . . . . . . . . . . . . . . . 1699 Highest Corruption 30 | . 2 . . 5 5 5 5 . 1 1 1 1 . . 30 30 30 . 1 1 1 15 6 8 14 Average Corruption 4 | . 2 . . 3 5 5 5 . 1 1 1 1 . . 28 30 30 . 1 1 1 3 5 4 7 Corruption Purged . | . . . . . . . . . . . . . . . . . . . . . . . . . . Corruption Blocked 10 | . . . . . . . . . . . . . . . . . . . . . 10 . . . . Effects 265 | . 1 . . 54 18 19 1 . 18 . 3 6 . . 9 14 5 . 3 8 1 26 13 27 39 Message Errors 67 | . . . . 18 3 9 . . 2 . 2 . . . 4 4 1 . . 1 . 5 3 6 9 Matter Fused 67 | . . . . 11 4 4 1 . 9 . 1 . . . 2 1 1 . 1 3 1 8 3 6 11 Heat Flow Errors 24 | . . . . 3 . 2 . . 2 . . 2 . . . 3 . . 1 1 . 4 3 . 3 Energy Discharges 33 | . 1 . . 10 3 3 . . 2 . . . . . 1 2 1 . 1 1 . 3 1 3 1 Parts Rejected 2 | . . . . . . . . . . . . . . . . . 1 . . . . . . . 1 Parts Fused 1 | . . . . 1 . . . . . . . . . . . . . . . . . . . . . Data Loss (minor) 30 | . . . . 4 6 1 . . 1 . . 2 . . . 1 1 . . 1 . 2 . 5 6 Data Loss (major) 10 | . . . . 4 . . . . . . . . . . . 1 . . . . . . 1 3 1 Misfires 13 | . . . . . 1 . . . 2 . . 1 . . 1 1 . . . 1 . 2 2 1 1 Alerts 6 | . . . . 2 1 . . . . . . . . . 1 . . . . . . . . 2 . Misdirections 3 | . . . . . . . . . . . . . . . . . . . . . . . . . 3 Weapon Failures 9 | . . . . 1 . . . . . . . 1 . . . 1 . . . . . 2 . 1 3 Overload Shots 1 | . . . . . . . . . . . . . . . 1 . . . . . . . . . . Overflow Damage 1455 | . . 99 . 4 19 . . 34 340 . . . . 9 . 1 . . 109 . 45 7 22 174 592 Projectiles 654 | . . . . . . . . . 15 . . . . 9 . 1 . . 99 . 15 . 22 79 414 Explosions 154 | . . 44 . 4 19 . . . . . . . . . . . . . 10 . 30 7 . 40 . Melee 647 | . . 55 . . . . . 34 325 . . . . . . . . . . . . . . 55 178 Knockbacks 61 | . . 3 . 36 . . . 1 9 . . . . . . . . . . . . . 4 7 1 Impact 3 | . . 2 . . . . . . 1 . . . . . . . . . . . . . . . . Kinetic 57 | . . . . 36 . . . 1 8 . . . . . . . . . . . . . 4 7 1 Secondary 1 | . . 1 . . . . . . . . . . . . . . . . . . . . . . . Self-Inflicted Damage 328 | . 37 34 . 47 19 . . 6 . . . . . . . . . . . . . 59 . 126 . Shots 11 | . 2 2 . 1 1 . . . . . . . . . . . . . . . . 3 . 2 . Rammed 23 | . . 3 12 . . . . 2 4 . . . . . . . 2 . . . . . . . . Targets Rammed 26 | . 1 4 13 . . . . 2 4 . . . . . . . 2 . . . . . . . . Kicked 1 | . 1 . . . . . . . . . . . . . . . . . . . . . . . . Crushed 2 | . . 1 1 . . . . . . . . . . . . . . . . . . . . . . Highest Temperature 684 | . 312 62 257 254 . 247 . . 274 . . 214 99 302 236 216 63 334 338 207 234 684 414 360 405 Average Temperature 92 | . 88 17 50 50 . 126 . . 68 . . 65 53 112 87 79 38 140 106 83 81 129 117 103 143 Received Heat Transfer 2862 | . 60 195 792 370 81 . . 56 96 . . 9 . 78 24 72 28 18 22 26 55 201 79 8 592 Effects 31 | . . . . . . . . . . . . . . . . 3 . 1 3 . 1 7 1 1 14 Shutdowns 6 | . . . . . . . . . . . . . . . . . . 1 2 . . 2 1 . . Energy Bleed 3 | . . . . . . . . . . . . . . . . . . . . . . 1 . . 2 Interference 17 | . . . . . . . . . . . . . . . . 3 . . . . 1 . . 1 12 Matter Decay 3 | . . . . . . . . . . . . . . . . . . . 1 . . 2 . . . Damage (major) 2 | . . . . . . . . . . . . . . . . . . . . . . 2 . . . Siege Activations 30 | . . . . . . . . . . . . . . . . 1 . . 4 2 1 3 4 5 10 Total Turns 525 | . . . . . . . . . . . . . . . . 4 . . 41 28 5 68 59 115 205 Longest Duration 43 | . . . . . . . . . . . . . . . . 4 . . 19 15 5 43 29 38 43 Robots Corrupted 1 | . . . . 1 . . . . . . . . . . . . . . . . . . . . . Combat Hostiles 1 | . . . . 1 . . . . . . . . . . . . . . . . . . . . . Parts Fried 12 | . . 3 . 5 . . . 1 1 . . . . . . . . . . . . . . 2 . Impact Corruptions 14 | . . 2 . . . . . 1 9 . . . . . . . . . . . . . . 2 . Robots Melted 4 | . . . . . . . . . . . . . . . . . 1 1 . . . . . . 2 Combat Hostiles 3 | . . . . . . . . . . . . . . . . . 1 1 . . . . . . 1 Parts Melted 20 | . . . 1 . . . . . . . . . . 2 1 1 3 2 . . 2 1 1 . 6 Heat Transferred 12762 | . 1338 148 . 150 . . . . . . . . 74 740 278 372 50 200 100 . 1534 635 938 1839 4366 Parts Sabotaged . | . . . . . . . . . . . . . . . . . . . . . . . . . . Parts Stolen . | . . . . . . . . . . . . . . . . . . . . . . . . . . Parts Stripped . | . . . . . . . . . . . . . . . . . . . . . . . . . . Power Chain Reactions 5 | . . . . 1 . . . . . . . . . . . . . . . . . . 1 3 . Missiles Intercepted . | . . . . . . . . . . . . . . . . . . . . . . . . . . Alert | -11 -10 -9 -8 -7 -7 -7 -7 -6 -6 -6 -6 -5 -5 -5 -5 -5 -5 -4 -4 -4 -4 -3 -3 -3 -3 ------- Run | Jun Mat Mat Mat Fac Low Low Zio Pro Fac Low Dat Pro Fac Ext Cet Arc Hub Fac Upp Upp War Pro Res Qua Sec Peak Influence 2175 | . 185 338 592 443 . . . . 251 . . . 359 203 322 224 195 112 . . . . 406 498 2175 Initial 337 | . . 53 104 268 . . . . 102 . . . 337 32 113 128 78 63 . . . . . 180 132 Average 212 | . 86 177 291 144 . . . . 93 . . . 238 78 196 197 124 85 . . . . 209 300 610 Maximum Alert Level 5 | . . 1 2 2 . . . . 1 . . . 1 1 1 1 . . . . . . 2 2 5 Low Security (%) 60 | 100 100 48 50 70 . . . . 92 . . . 26 94 70 43 100 100 . . . . 45 6 17 Level 1 25 | . . 51 8 17 . . . . 7 . . . 73 5 29 56 . . . . . . 49 85 21 Level 2 12 | . . . 41 11 . . . . . . . . . . . . . . . . . . 5 7 43 Level 3 . | . . . . . . . . . . . . . . . . . . . . . . . . . . Level 4 . | . . . . . . . . . . . . . . . . . . . . . . . . . . Level 5 . | . . . . . . . . . . . . . . . . . . . . . . . . . . High Security . | . . . . . . . . . . . . . . . . . . . . . . . . . . Max Security 1 | . . . . . . . . . . . . . . . . . . . . . . . . . 17 Squads Dispatched 72 | . . 2 8 10 . 1 . 1 9 . . . 1 1 . . 2 . . . . . 3 4 30 Investigation 8 | . . . 3 2 . . . . 1 . . . . . . . . . . . . . 1 . 1 Extermination 21 | . . . . 6 . . . . 5 . . . 1 . . . . . . . . . 2 4 3 Reinforcement 11 | . . 2 2 2 . . . . . . . . . 1 . . 2 . . . . . . . 2 Assault 23 | . . . . . . 1 . 1 . . . . . . . . . . . . . . . . 21 Garrison 6 | . . . 3 . . . . . 3 . . . . . . . . . . . . . . . . Intercept 3 | . . . . . . . . . . . . . . . . . . . . . . . . . 3 Searches Triggered . | . . . . . . . . . . . . . . . . . . . . . . . . . . Data Miner Redirects 1 | . . . . . . . . . . . . . . . . . . . . . . . 1 . . Construction Impeded 3 | . . . 1 1 . . . . . . . . . 1 . . . . . . . . . . . Haulers Reinforced 1 | . . . . . . . . . . . . . . . . . 1 . . . . . . . . Active Scanning Responses . | . . . . . . . . . . . . . . . . . . . . . . . . . . Cargo Convoy Interrupts . | . . . . . . . . . . . . . . . . . . . . . . . . . . Stealth | -11 -10 -9 -8 -7 -7 -7 -7 -6 -6 -6 -6 -5 -5 -5 -5 -5 -5 -4 -4 -4 -4 -3 -3 -3 -3 --------- Run | Jun Mat Mat Mat Fac Low Low Zio Pro Fac Low Dat Pro Fac Ext Cet Arc Hub Fac Upp Upp War Pro Res Qua Sec Distress Signals 14 | . . . 7 2 . . . . 1 . . . . 2 1 . . . . . . . . . 1 Communications Jammed 185 | . . . . . . . . . . . . . . 69 . . 10 . . . . . 15 . 91 Distress Signals 182 | . . . . . . . . . . . . . . 69 . . 10 . . . . . 15 . 88 Times Spotted 470 | . 14 21 65 28 4 4 . 13 30 . . 6 3 19 6 8 6 1 6 3 55 10 19 17 132 Peak Tracking Total 44 | . 3 8 8 6 3 8 . 14 4 . . 2 1 3 5 1 5 1 4 3 13 4 3 4 44 Tactical Retreats 20 | . 3 . 4 . 1 . . 1 1 . . . . . . . . . . . 1 . . 1 8 Traps | -11 -10 -9 -8 -7 -7 -7 -7 -6 -6 -6 -6 -5 -5 -5 -5 -5 -5 -4 -4 -4 -4 -3 -3 -3 -3 ------- Run | Jun Mat Mat Mat Fac Low Low Zio Pro Fac Low Dat Pro Fac Ext Cet Arc Hub Fac Upp Upp War Pro Res Qua Sec Traps Triggered 14 | . 3 . 4 1 . . . . 2 . . . . 1 . . . . . . . . 2 1 . Indirectly 1 | . . . . . . . . . . . . . . . . . . . . . . . . 1 . Trap Hack Attempts . | . . . . . . . . . . . . . . . . . . . . . . . . . . Triggered . | . . . . . . . . . . . . . . . . . . . . . . . . . . Disarmed . | . . . . . . . . . . . . . . . . . . . . . . . . . . Reprogrammed . | . . . . . . . . . . . . . . . . . . . . . . . . . . Reused . | . . . . . . . . . . . . . . . . . . . . . . . . . . Traps Extracted . | . . . . . . . . . . . . . . . . . . . . . . . . . . Installed . | . . . . . . . . . . . . . . . . . . . . . . . . . . Triggered 35 | . . . . . . 1 . . . . . 4 . . . . . . . 1 29 . . . . Machines | -11 -10 -9 -8 -7 -7 -7 -7 -6 -6 -6 -6 -5 -5 -5 -5 -5 -5 -4 -4 -4 -4 -3 -3 -3 -3 ---------- Run | Jun Mat Mat Mat Fac Low Low Zio Pro Fac Low Dat Pro Fac Ext Cet Arc Hub Fac Upp Upp War Pro Res Qua Sec Machines Disabled 28 | . . 1 1 . . . . . 5 . . . . 1 2 2 . . 1 . . . 1 6 8 Max in Single Turn 3 | . . 1 1 . . . . . . . . . . . 1 1 . . 1 . . . . 3 1 Garrison Access 1 | . . . . 1 . . . . . . . . . . . . . . . . . . . . . Energy Cycler 1 | . . . . . . . . . . . . . . 1 . . . . . . . . . . . Machines Repaired . | . . . . . . . . . . . . . . . . . . . . . . . . . . Machines Sabotaged . | . . . . . . . . . . . . . . . . . . . . . . . . . . Overloaded Fab Kills . | . . . . . . . . . . . . . . . . . . . . . . . . . . Hacking | -11 -10 -9 -8 -7 -7 -7 -7 -6 -6 -6 -6 -5 -5 -5 -5 -5 -5 -4 -4 -4 -4 -3 -3 -3 -3 --------- Run | Jun Mat Mat Mat Fac Low Low Zio Pro Fac Low Dat Pro Fac Ext Cet Arc Hub Fac Upp Upp War Pro Res Qua Sec Machines Accessed 45 | . 5 4 12 8 . . . . 2 . 3 1 . . . . . . 1 . 4 . 1 1 3 Terminals 25 | . 4 4 10 5 . . . . . . . 1 . . . . . . . . . . . . 1 Fabricators 2 | . . . . 1 . . . . . . . . . . . . . . . . . . 1 . . Repair Stations 6 | . 1 . 1 1 . . . . 1 . . . . . . . . . . . . . . 1 1 Recycling Units . | . . . . . . . . . . . . . . . . . . . . . . . . . . Scanalyzers 1 | . . . 1 . . . . . . . . . . . . . . . . . . . . . . Garrison Access 3 | . . . . 1 . . . . 1 . . . . . . . . . . . . . . . 1 Total Hacks 135 | . 18 13 38 14 . . . . 4 . 25 1 . . . . . . 1 . 8 . 2 2 9 Successful 78 | . 10 5 18 5 . . . . 1 . 25 1 . . . . . . 1 . 8 . 2 1 1 Failed 56 | . 8 8 19 9 . . . . 3 . . . . . . . . . . . . . . 1 8 Catastrophic 11 | . . 1 6 3 . . . . . . . . . . . . . . . . . . . . 1 Database Lockouts 1 | . . . 1 . . . . . . . . . . . . . . . . . . . . . . Manual 117 | . 16 13 33 8 . . . . 21 . . . . 4 1 . 5 2 . . 1 . 5 . 8 Terminals 75 | . 16 13 33 8 . . . . . . . 1 . . . . . . . . . . . . 4 Fabricators 4 | . . . . 2 . . . . . . . . . . . . . . . . . . 2 . . Repair Stations 16 | . 2 . 4 3 . . . . 2 . . . . . . . . . . . . . . 2 3 Recycling Units . | . . . . . . . . . . . . . . . . . . . . . . . . . . Scanalyzers 1 | . . . 1 . . . . . . . . . . . . . . . . . . . . . . Garrison Access 5 | . . . . 1 . . . . 2 . . . . . . . . . . . . . . . 2 Terminal Hacks 46 | . 4 1 5 . . . . . . . 25 1 . . . . . . 1 . 8 . . . 1 Record 15 | . . . . . . . . . . . 6 1 . . . . . . 1 . 7 . . . . Part Schematic 12 | . . . 1 . . . . . . . 11 . . . . . . . . . . . . . . Robot Schematic 5 | . . . . . . . . . . . 5 . . . . . . . . . . . . . . Robot Analysis 2 | . 2 . . . . . . . . . . . . . . . . . . . . . . . . Prototype ID Bank 5 | . 2 . . . . . . . . . 3 . . . . . . . . . . . . . . Open Door 2 | . . . . . . . . . . . . . . . . . . . . . 1 . . . 1 Level Access Points 1 | . . 1 . . . . . . . . . . . . . . . . . . . . . . . Unreport Threat 2 | . . . 2 . . . . . . . . . . . . . . . . . . . . . . Surveillance Status 1 | . . . 1 . . . . . . . . . . . . . . . . . . . . . . Zone Layout 1 | . . . 1 . . . . . . . . . . . . . . . . . . . . . . Fabricator Hacks 3 | . . . . 1 . . . . . . . . . . . . . . . . . . 2 . . Network Status 1 | . . . . 1 . . . . . . . . . . . . . . . . . . . . . Load Schematic 1 | . . . . . . . . . . . . . . . . . . . . . . . 1 . . Build 1 | . . . . . . . . . . . . . . . . . . . . . . . 1 . . Repair Station Hacks 10 | . 2 . 4 2 . . . . 1 . . . . . . . . . . . . . . 1 . Scan Component 6 | . 1 . 2 1 . . . . 1 . . . . . . . . . . . . . . 1 . Repair 4 | . 1 . 2 1 . . . . . . . . . . . . . . . . . . . . . Recycling Unit Hacks . | . . . . . . . . . . . . . . . . . . . . . . . . . . Scanalyzer . | . . . . . . . . . . . . . . . . . . . . . . . . . . Garrison Access Hacks 1 | . . . . 1 . . . . . . . . . . . . . . . . . . . . . Seal Access 1 | . . . . 1 . . . . . . . . . . . . . . . . . . . . . Unauthorized Hacks 18 | . 4 4 9 1 . . . . . . . . . . . . . . . . . . . . . Terminals 17 | . 4 4 8 1 . . . . . . . . . . . . . . . . . . . . . Assimilate 1 | . . . 1 . . . . . . . . . . . . . . . . . . . . . . Botnet 16 | . 4 4 7 1 . . . . . . . . . . . . . . . . . . . . . Fabricators . | . . . . . . . . . . . . . . . . . . . . . . . . . . Repair Stations . | . . . . . . . . . . . . . . . . . . . . . . . . . . Recycling Units . | . . . . . . . . . . . . . . . . . . . . . . . . . . Scanalyzers 1 | . . . 1 . . . . . . . . . . . . . . . . . . . . . . Extract 1 | . . . 1 . . . . . . . . . . . . . . . . . . . . . . Garrison Access . | . . . . . . . . . . . . . . . . . . . . . . . . . . Data Cores Recovered 1 | . . . 1 . . . . . . . . . . . . . . . . . . . . . . Used . | . . . . . . . . . . . . . . . . . . . . . . . . . . Hacking Detections 34 | . 5 3 11 7 . . . . 2 . . . . . 1 . . . . . . . 1 1 3 Full Trace Events 4 | . . . 1 1 . . . . 1 . . . . . . . . . . . . . 1 . . Feedback Events . | . . . . . . . . . . . . . . . . . . . . . . . . . . Feedback Blocked . | . . . . . . . . . . . . . . . . . . . . . . . . . . Robot Schematics Acquired 9 | . . . . . . . . . 4 . 5 . . . . . . . . . . . . . . Robots Built . | . . . . . . . . . . . . . . . . . . . . . . . . . . Authchips . | . . . . . . . . . . . . . . . . . . . . . . . . . . Time . | . . . . . . . . . . . . . . . . . . . . . . . . . . Total Robot Build Rating . | . . . . . . . . . . . . . . . . . . . . . . . . . . Part Schematics Acquired 14 | . . . 3 . . . . . . . 11 . . . . . . . . . . . . . . Parts Built 1 | . . . . . . . . . . . . . . . . . . . . . . . 1 . . Authchips . | . . . . . . . . . . . . . . . . . . . . . . . . . . Time 152 | . . . . . . . . . . . . . . . . . . . . . . . 152 . . Total Part Build Rating 5 | . . . . . . . . . . . . . . . . . . . . . . . 5 . . Parts Repaired 4 | . 1 . 2 1 . . . . . . . . . . . . . . . . . . . . . Time 112 | . 13 . 86 13 . . . . . . . . . . . . . . . . . . . . . Parts Recycled . | . . . . . . . . . . . . . . . . . . . . . . . . . . Recycled Matter . | . . . . . . . . . . . . . . . . . . . . . . . . . . Retrieved Matter . | . . . . . . . . . . . . . . . . . . . . . . . . . . Retrieved Components . | . . . . . . . . . . . . . . . . . . . . . . . . . . Parts Scanalyzed . | . . . . . . . . . . . . . . . . . . . . . . . . . . Part Schematics Acquired . | . . . . . . . . . . . . . . . . . . . . . . . . . . Parts Damaged . | . . . . . . . . . . . . . . . . . . . . . . . . . . Bothacking | -11 -10 -9 -8 -7 -7 -7 -7 -6 -6 -6 -6 -5 -5 -5 -5 -5 -5 -4 -4 -4 -4 -3 -3 -3 -3 ------------ Run | Jun Mat Mat Mat Fac Low Low Zio Pro Fac Low Dat Pro Fac Ext Cet Arc Hub Fac Upp Upp War Pro Res Qua Sec Used RIF Installer . | . . . . . . . . . . . . . . . . . . . . . . . . . . Robots Hacked . | . . . . . . . . . . . . . . . . . . . . . . . . . . Non-combat . | . . . . . . . . . . . . . . . . . . . . . . . . . . Combat . | . . . . . . . . . . . . . . . . . . . . . . . . . . Robot Hacks Applied . | . . . . . . . . . . . . . . . . . . . . . . . . . . Relay Couplers Released . | . . . . . . . . . . . . . . . . . . . . . . . . . . Fabnet Peak Effective % . | . . . . . . . . . . . . . . . . . . . . . . . . . . Robots Rewired 14 | . . . . . . . . . . . . . . 11 . . . . . . 3 . . . . Allies Hacked 8 | . . . . . . . . . 5 . . 1 . 2 . . . . . . . . . . . Hacks Repelled . | . . . . . . . . . . . . . . . . . . . . . . . . . . Allies | -11 -10 -9 -8 -7 -7 -7 -7 -6 -6 -6 -6 -5 -5 -5 -5 -5 -5 -4 -4 -4 -4 -3 -3 -3 -3 -------- Run | Jun Mat Mat Mat Fac Low Low Zio Pro Fac Low Dat Pro Fac Ext Cet Arc Hub Fac Upp Upp War Pro Res Qua Sec Total Allies 61 | . . . . . . . 11 . 8 . . 2 . 26 1 . 6 1 . . 3 . 3 . . Largest Group 11 | . . . . . . . 11 11 5 2 2 3 2 11 5 3 5 1 1 . 3 . 3 . . Highest-Rated Group 659 | . . . . . . . 337 337 279 197 197 302 261 659 350 281 224 50 50 . 165 . 288 . . Highest-Rated Ally 165 | . . . . . . . 39 39 165 165 165 165 165 165 159 159 70 50 50 . 60 . 96 . . Zionite Dispatches 9 | . . . . . . . . . 2 . . . . 2 . . 2 1 . . . . 2 . . Light 4 | . . . . . . . . . . . . . . 2 . . 1 . . . . . 1 . . Recon 1 | . . . . . . . . . . . . . . . . . . . . . . . 1 . . Fire 1 | . . . . . . . . . . . . . . . . . 1 . . . . . . . . Demo 1 | . . . . . . . . . . . . . . . . . . 1 . . . . . . . Hero 1 | . . . . . . . . . 1 . . . . . . . . . . . . . . . . Trap Resupply 1 | . . . . . . . . . 1 . . . . . . . . . . . . . . . . Total Orders 5 | . . . . . . . . . . . . . . . . . . . . . . . 5 . . EXPLORE 2 | . . . . . . . . . . . . . . . . . . . . . . . 2 . . RETURN 3 | . . . . . . . . . . . . . . . . . . . . . . . 3 . . Ally Attacks 446 | . . . . . . . . 40 58 . . 17 14 151 48 21 25 . 2 . 26 . 44 . . Total Damage 12697 | . . . . . . . . 1148 1745 . . 358 349 4058 1021 408 512 . 198 . 944 . 1956 . . Kills 75 | . . . . . . . . 8 10 . . 5 3 25 8 1 4 . 1 . 3 . 7 . . Allies Corrupted 1 | . . . . . . . . . . . . . . . . . . . . . 1 . . . . Allies Melted 5 | . . . . . . . . 1 . . . . . . . . . . . . 4 . . . . Intel | -11 -10 -9 -8 -7 -7 -7 -7 -6 -6 -6 -6 -5 -5 -5 -5 -5 -5 -4 -4 -4 -4 -3 -3 -3 -3 ------- Run | Jun Mat Mat Mat Fac Low Low Zio Pro Fac Low Dat Pro Fac Ext Cet Arc Hub Fac Upp Upp War Pro Res Qua Sec Robot Analysis Total 2 | . 2 . . . . . . . . . . . . . . . . . . . . . . . . Derelict Logs Recovered 7 | . . . . . 1 . 2 1 . . . . . . . . . . 1 2 . . . . . Drone Launches 4 | . . . . . . . . . . . . . . . . . . . . . . . 4 . . Drone Recoveries 4 | . . . . . . . . . . . . . . . . . . . . . . . 4 . . Zionite Intel Received 6 | . . . . . . . . . 4 . . . . . . . . . . . . . . . 2 Emergency Access 2 | . . . . . . . . . 1 . . . . . . . . . . . . . . . 1 Guard Positions 1 | . . . . . . . . . . . . . . . . . . . . . . . . . 1 Unaware Schematics 1 | . . . . . . . . . 1 . . . . . . . . . . . . . . . . Unaware Analyses 1 | . . . . . . . . . 1 . . . . . . . . . . . . . . . . Active Terminals 1 | . . . . . . . . . 1 . . . . . . . . . . . . . . . . Exploration | -11 -10 -9 -8 -7 -7 -7 -7 -6 -6 -6 -6 -5 -5 -5 -5 -5 -5 -4 -4 -4 -4 -3 -3 -3 -3 ------------- Run | Jun Mat Mat Mat Fac Low Low Zio Pro Fac Low Dat Pro Fac Ext Cet Arc Hub Fac Upp Upp War Pro Res Qua Sec Turns Passed 28650 | 77 718 1039 2995 3709 774 644 1502 509 3021 45 239 686 945 2188 285 228 99 132 677 848 1432 1047 1709 1345 1757 Spaces Moved 13217 | 52 409 553 1098 1377 524 445 993 335 1255 18 96 272 367 795 125 99 56 63 361 478 656 516 829 524 921 Core 3 | 3 . . . . . . . . . . . . . . . . . . . . . . . . . Treads 9506 | . . 318 1098 1332 . . . . 899 18 96 272 367 795 125 99 56 63 361 478 656 516 829 524 604 Legs 871 | 49 409 105 . . . . . . . . . . . . . . . . . . . . . . 308 Wheels 2828 | . . 130 . 45 524 445 993 335 356 . . . . . . . . . . . . . . . . Hover . | . . . . . . . . . . . . . . . . . . . . . . . . . . Flight . | . . . . . . . . . . . . . . . . . . . . . . . . . . Fastest Speed 30 | 50 120 95 160 145 145 145 145 145 145 247 247 247 247 247 160 160 160 162 162 162 162 160 155 156 30 Average Speed 183 | 120 136 154 200 235 145 145 145 145 221 247 247 247 247 247 187 160 160 162 162 162 162 160 158 186 131 Slowest Speed 260 | 190 260 240 240 240 145 145 160 145 247 247 247 247 247 247 247 160 160 162 162 162 162 162 235 237 158 Overloaded Moves . | . . . . . . . . . . . . . . . . . . . . . . . . . . Propulsion Burnouts . | . . . . . . . . . . . . . . . . . . . . . . . . . . Robots Hopped . | . . . . . . . . . . . . . . . . . . . . . . . . . . Cave-ins Triggered . | . . . . . . . . . . . . . . . . . . . . . . . . . . Teleports 2 | . . . . . . . . . . . . . . . . . . . . . . . . . 2 Spacefolds 4 | . . . . . . . . . . . . . . . . . . . . . . . . . 4 Exploration Rate (%) 49 | 4 56 47 83 33 69 61 89 51 43 2 70 47 8 89 63 79 12 2 52 65 77 62 23 51 57 Regions Visited 25 Branch Regions 17 Pre-discovered Areas 2 | . . . . . . . 1 . . . 1 . . . . . . . . . . . . . . Known Exits Taken 22 | . . 1 . 1 1 1 1 1 1 1 1 1 1 1 1 1 1 1 1 1 1 1 1 1 . Unknown Exits Taken 3 | 1 1 . 1 . . . . . . . . . . . . . . . . . . . . . . Scrap Searched 14 | . . . . . 4 1 3 1 . 1 . 1 . . . . . . . 2 . 1 . . . Spaces Dug 62 | . . . . 12 . . . . 8 . . . . . . . . . 6 6 4 6 11 2 7 Terrain Destroyed 510 | . 34 17 . 16 22 . . 20 10 . . 52 . 1 . 2 . 2 54 10 46 141 40 21 22 Melee 25 | . . . . 12 . . . . 8 . . . . . . . . . . . 2 . . . 3 Projectile 112 | . . . . . . . . . 2 . . . . 1 . 2 . 2 11 10 10 16 30 9 19 AOE 373 | . 34 17 . 4 22 . . 20 . . . 52 . . . . . . 43 . 34 125 10 12 . Terrain Rammed . | . . . . . . . . . . . . . . . . . . . . . . . . . . Walls Destroyed . | . . . . . . . . . . . . . . . . . . . . . . . . . . Machines Disabled . | . . . . . . . . . . . . . . . . . . . . . . . . . . Actions | -11 -10 -9 -8 -7 -7 -7 -7 -6 -6 -6 -6 -5 -5 -5 -5 -5 -5 -4 -4 -4 -4 -3 -3 -3 -3 --------- Run | Jun Mat Mat Mat Fac Low Low Zio Pro Fac Low Dat Pro Fac Ext Cet Arc Hub Fac Upp Upp War Pro Res Qua Sec Total 16371 | 63 494 692 1605 1684 531 444 1058 347 1427 20 99 282 407 994 160 142 61 84 414 525 947 663 1145 823 1260 Wait 1277 | . 31 35 227 110 . . 47 1 53 3 . 3 2 7 2 7 1 9 28 31 167 87 173 118 135 Move 13188 | 51 408 552 1097 1376 523 444 992 335 1254 17 95 271 366 794 124 98 55 62 360 477 655 515 828 523 916 Hop . | . . . . . . . . . . . . . . . . . . . . . . . . . . Pick Up 172 | 6 4 22 14 25 . . 4 . 12 . . 1 9 3 2 6 . 2 . . 11 1 10 22 18 Fast Attach 147 | 6 6 7 11 5 . . 5 . 8 . 2 . 4 5 8 1 1 . . 1 12 . 22 26 17 Attach 65 | . 1 5 7 10 . . . . 6 . . . 3 . . . . 2 . . 2 3 2 15 9 Detach 19 | . . . . . . . . . . . . . 1 1 . 1 . . . . . . 1 7 8 Swap 265 | . 2 10 22 39 2 . 1 3 31 . . 1 8 12 2 5 1 6 10 5 12 24 31 23 15 Drop 287 | . 3 25 23 25 . . 9 . 21 . 2 1 13 16 12 9 . . . 1 22 1 35 53 16 Fire 673 | . 38 26 191 80 6 . . 6 18 . . 5 1 15 10 15 1 3 16 10 38 32 43 30 89 Melee 72 | . . 6 . 14 . . . 1 16 . . . . . . . . . . . 8 . . 6 21 Ram 1 | . . . . . . . . 1 . . . . . . . . . . . . . . . . . Kick 1 | . 1 . . . . . . . . . . . . . . . . . . . . . . . . Crush 23 | . . 4 13 . . . . . 4 . . . . . . . 2 . . . . . . . . Escape Stasis 18 | . . . . . . . . . 2 . . . . . . . . . . . . . . . 16 Rewire 163 | . . . . . . . . . 2 . . . . 141 . . . . . . 20 . . . . Trap . | . . . . . . . . . . . . . . . . . . . . . . . . . . Miscellaneous . | . . . . . . . . . . . . . . . . . . . . . . . . . . Route ------- -11/Junkyard -10/Materials (discovered 3 exits: *Mat / [*Min x2]) -9/Materials (discovered 4 exits: *Mat x3 / [*Min]) -8/Materials -7/Factory (discovered 2 exits: *Fac / *Low) -7/Lower Caves -7/Lower Caves -7/Zion -6/Proximity Caves -6/Factory (discovered 3 exits: *Fac / *Low x2) -6/Lower Caves -6/Data Miner -5/Proximity Caves -5/Factory (discovered 4 exits: Fac / *Upp x2 / *Ext) -5/Extension (discovered 3 exits: *Fac x2 / *Cet) -5/Cetus -5/Archives (discovered 3 exits: *Fac / *Hub x2) -5/Hub_04(d) -4/Factory -4/Upper Caves -4/Upper Caves (discovered 2 exits: *Res / *War) -4/Warlord -3/Proximity Caves -3/Research (discovered 3 exits: Res x2 / *Qua) -3/Quarantine -3/Section 7 History --------- Turn | Location | Event 10 | -11/Junkyard | Discovered new exit (range 15) 78 | -11/Junkyard | Entered Materials 230 | -10/Materials | Discovered new exit (range 16) 307 | -10/Materials | Build established: Mutant 470 | -10/Materials | Discovered new exit (range 7) 517 | -10/Materials | Repaired Ion Engine 525 | -10/Materials | Discovered new exit (range 10) 796 | -10/Materials | Entered another Materials area 796 | -9/Materials | Evolved 2 slots: Propulsion x2 1084 | -9/Materials | Destroyed 8 combat bots 1566 | -9/Materials | Identified exit to Materials 1573 | -9/Materials | Discovered new exit (range 7) 1835 | -9/Materials | Entered another Materials area 1835 | -8/Materials | Evolved 2 slots: Utility x2 1905 | -8/Materials | Repaired Lgt. Treads 1967 | -8/Materials | Repaired Enh. Autogun 2198 | -8/Materials | Build established: Scavenger-Mutant 2736 | -8/Materials | Discovered new exit (range 8) 2752 | -8/Materials | Central database locked down 4263 | -8/Materials | Garrison activated, responded to threat 4372 | -8/Materials | Lost 3 parts (2n1w) 4830 | -8/Materials | Entered Factory 4830 | -7/Factory | Evolved 2 slots: Utility x2 5176 | -7/Factory | Build established: Scavenger-Skirmisher 5193 | -7/Factory | Repaired Lgt. Treads 6421 | -7/Factory | Build established: Mutant 7805 | -7/Factory | Discovered new exit (range 10) 7855 | -7/Factory | Identified exit to Factory 8049 | -7/Factory | Lost 3 parts (1n1u1w) 8528 | -7/Factory | Discovered new exit (range 8) 8538 | -7/Factory | Identified exit to Lower Caves 8539 | -7/Factory | Entered Lower Caves 8879 | -7/Lower Caves | Build established: Skirmisher 8906 | -7/Lower Caves | Spotted B-75 Beast 9249 | -7/Lower Caves | Discovered new exit (range 12) 9308 | -7/Lower Caves | Identified exit to Lower Caves 9313 | -7/Lower Caves | Entered another Lower Caves area 9350 | -7/Lower Caves | Build established: Mutant 9846 | -7/Lower Caves | Discovered new exit (range 11) 9908 | -7/Lower Caves | Encountered a Warlord checkpoint 9931 | -7/Lower Caves | Identified exit to Zion 9944 | -7/Lower Caves | Attracted the attention of an 0b10 outpost 9957 | -7/Lower Caves | Entered Zion 10031 | -7/Zion | System corruption cleaned by Quarantine Array 10211 | -7/Zion | Gained Derelict followers 10242 | -7/Zion | Found Prototype Device 10242 | -7/Zion | Identified Phasing AFG 10273 | -7/Zion | Discovered new exit (range 10) 10406 | -7/Zion | Build established: Skirmisher 10482 | -7/Zion | Received a visual enhancement algorithm 10517 | -7/Zion | Learned location of 1 exit from Factory 10537 | -7/Zion | Given A8's code to call for help 10572 | -7/Zion | Learned Factory terminal intel 10905 | -7/Zion | Learned location of Data Miner (-6) 11161 | -7/Zion | Imprinted 11163 | -7/Zion | Declared Zion's savior 11406 | -7/Zion | Identified exit to Proximity Caves 11459 | -7/Zion | Entered Proximity Caves 11459 | -6/Proximity Caves | Accompanied by 11 allies 11544 | -6/Proximity Caves | P-60 Hacker assimilated allied D6-5J0(i) 11551 | -6/Proximity Caves | P-60 Hacker assimilated allied 5A-US6(g) 11561 | -6/Proximity Caves | P-60 Hacker assimilated allied RJ-30H(g) 11760 | -6/Proximity Caves | Build established: Mutant 11917 | -6/Proximity Caves | Discovered exit to Factory (range 3) 11923 | -6/Proximity Caves | Learned Factory terminal intel 11948 | -6/Proximity Caves | Attracted the attention of an 0b10 outpost 11968 | -6/Proximity Caves | Entered Factory 11968 | -6/Factory | Accompanied by 2 allies 11968 | -6/Factory | Evolved 2 slots: Power x1, Utility x1 11969 | -6/Factory | Identified exit to Lower Caves 11970 | -6/Factory | Loaded intel: 26 terminal locations 12718 | -6/Factory | Retrieved Zion intel report: Active Terminals 12735 | -6/Factory | Retrieved Zion intel report: Unaware Schematics 12736 | -6/Factory | Zion hero teleported in (ME-RLN) 12821 | -6/Factory | ME-RLN assimilated hostile L-41 Fighter 12856 | -6/Factory | Retrieved Zion intel report: Emergency Access 12878 | -6/Factory | Retrieved Zion intel report: Unaware Analyses 12879 | -6/Factory | Zion Trap Resupply teleported in 12998 | -6/Factory | ME-RLN assimilated hostile Y-54 Guardian 13343 | -6/Factory | Discovered new exit (range 16) 13377 | -6/Factory | Identified exit to Factory 13408 | -6/Factory | Terminal network hard line cut 13802 | -6/Factory | Build established: Skirmisher 14577 | -6/Factory | Spotted B-75 Beast 14604 | -6/Factory | ME-RLN assimilated hostile W-25 Informer 14617 | -6/Factory | ME-RLN assimilated hostile W-25 Informer 14632 | -6/Factory | Allies destroyed B-75 Beast 14943 | -6/Factory | Discovered exit to Lower Caves (range 16) 14989 | -6/Factory | Entered Lower Caves 14989 | -6/Lower Caves | Accompanied by 2 allies (ME-RLN) 14990 | -6/Lower Caves | A Derelict revealed a hidden shortcut to meet someone special 14992 | -6/Lower Caves | Identified exit to Data Miner 15034 | -6/Lower Caves | Entered Data Miner 15034 | -6/Data Miner | Accompanied by 2 allies (ME-RLN) 15035 | -6/Data Miner | Discovered new exit (range 6) 15082 | -6/Data Miner | Met Data Miner 15139 | -6/Data Miner | Learned location of Section 7 (-3) 15139 | -6/Data Miner | Acquired the access code to Warlord's prototype stash 15171 | -6/Data Miner | Received God Mode back door access code from Data Miner 15271 | -6/Data Miner | Identified exit to Proximity Caves 15273 | -6/Data Miner | Entered Proximity Caves 15273 | -5/Proximity Caves | Accompanied by 2 allies (ME-RLN) 15397 | -5/Proximity Caves | Spotter reported a threat 15525 | -5/Proximity Caves | Escorted by Enhanced Grunt 15543 | -5/Proximity Caves | Spotter reported a threat 15583 | -5/Proximity Caves | ME-RLN assimilated hostile H-66 Slayer 15604 | -5/Proximity Caves | Received a Behemoth hack from an annoying Tinkerer 15727 | -5/Proximity Caves | Discovered exit to Factory (range 11) 15875 | -5/Proximity Caves | Build established: Mutant 15959 | -5/Proximity Caves | Entered Factory 15959 | -5/Factory | Accompanied by 2 allies (ME-RLN) 15959 | -5/Factory | Evolved 2 slots: Utility x2 15960 | -5/Factory | Identified exit to Upper Caves 15961 | -5/Factory | Loaded intel: 28 terminal locations 16285 | -5/Factory | Build established: Skirmisher 16285 | -5/Factory | Discovered new exit (range 15) 16512 | -5/Factory | Discovered exit to Upper Caves (range 15) 16614 | -5/Factory | Discovered new exit (range 19) 16894 | -5/Factory | Identified exit to Extension 16904 | -5/Factory | Entered Extension 16904 | -5/Extension | Accompanied by 2 allies (ME-RLN) 17002 | -5/Extension | ME-RLN assimilated hostile G-50 Soldier 17014 | -5/Extension | ME-RLN assimilated hostile G-50 Soldier 17215 | -5/Extension | Zion Light squad teleported in 17275 | -5/Extension | Rescued a captive Derelict 17690 | -5/Extension | Build established: Scavenger-Mutant 18114 | -5/Extension | Spotted B-75 Beast 18121 | -5/Extension | Allies destroyed B-75 Beast 18220 | -5/Extension | Discovered new exit (range 3) 18359 | -5/Extension | Rescued a captive Derelict 18360 | -5/Extension | Rescued a captive Derelict 18396 | -5/Extension | Zion Light squad teleported in 18487 | -5/Extension | Terminal network hard line cut 18544 | -5/Extension | Rescued a captive Derelict 18555 | -5/Extension | Rescued a captive Derelict 18574 | -5/Extension | Rescued A7 18798 | -5/Extension | Found Prototype Protection 18798 | -5/Extension | Identified Zio. Weapon Casing 19064 | -5/Extension | Discovered new exit (range 10) 19067 | -5/Extension | Discovered new exit (range 6) 19082 | -5/Extension | Identified exit to Cetus 19092 | -5/Extension | Entered Cetus 19092 | -5/Cetus | Accompanied by 5 allies (A7) 19097 | -5/Cetus | Acquired a Cetus Manufacturing Module code from A7 19127 | -5/Cetus | Spotted Cetus Guard 19127 | -5/Cetus | Spotted Cetus Guard 19133 | -5/Cetus | Spotted Cetus Guard 19137 | -5/Cetus | Allies destroyed Cetus Guard 19139 | -5/Cetus | Allies destroyed Cetus Guard 19139 | -5/Cetus | Spotted Cetus Guard 19147 | -5/Cetus | Allies destroyed Cetus Guard 19156 | -5/Cetus | Allies destroyed Cetus Guard 19224 | -5/Cetus | System corruption reached 10% 19234 | -5/Cetus | System corruption reached 30% 19298 | -5/Cetus | Started Cetus Manufacturing Module 19312 | -5/Cetus | Escorted A7 to Cetus Mainframe 19323 | -5/Cetus | Manufactured an Enhanced Grunt 19334 | -5/Cetus | Cetus Manufacturing Module disabled 19350 | -5/Cetus | Discovered new exit (range 15) 19372 | -5/Cetus | Identified exit to Archives 19377 | -5/Cetus | Entered Archives 19377 | -5/Archives | Accompanied by 3 allies (A7) 19382 | -5/Archives | Received a hacking code to weaken MAIN.C 19506 | -5/Archives | Discovered new exit (range 16) 19533 | -5/Archives | Discovered new exit (range 16) 19552 | -5/Archives | Discovered new exit (range 16) 19603 | -5/Archives | Identified exit to Hub_04(d) 19605 | -5/Archives | Entered Hub_04(d) 19608 | -5/Hub_04(d) | Zion Light squad teleported in 19629 | -5/Hub_04(d) | Zion Fire squad teleported in 19644 | -5/Hub_04(d) | Discovered new exit (range 9) 19665 | -5/Hub_04(d) | Identified exit to Factory 19688 | -5/Hub_04(d) | Spotted B-75 Beast 19704 | -5/Hub_04(d) | Entered Factory 19704 | -4/Factory | Evolved 2 slots: Propulsion x2 19739 | -4/Factory | Discovered new exit (range 11) 19755 | -4/Factory | Identified exit to Upper Caves 19813 | -4/Factory | Zion Demo squad teleported in 19836 | -4/Factory | Entered Upper Caves 19836 | -4/Upper Caves | Accompanied by 1 ally 19865 | -4/Upper Caves | Learned Research terminal intel 20154 | -4/Upper Caves | Build established: Scavenger-Skirmisher 20341 | -4/Upper Caves | Discovered new exit (range 18) 20511 | -4/Upper Caves | Identified exit to Upper Caves 20513 | -4/Upper Caves | Entered another Upper Caves area 20549 | -4/Upper Caves | Discovered new exit (range 16) 20592 | -4/Upper Caves | Encountered a Warlord checkpoint 21138 | -4/Upper Caves | Attracted the attention of an 0b10 checkpoint 21149 | -4/Upper Caves | Learned 4 Research zone layouts 21286 | -4/Upper Caves | Discovered new exit (range 15) 21307 | -4/Upper Caves | Identified exit to Warlord 21361 | -4/Upper Caves | Entered Warlord 21417 | -4/Warlord | System corruption cleaned by Quarantine Array 21442 | -4/Warlord | Build established: Scavenger-Mutant 21778 | -4/Warlord | Rebuked by Warlord 21792 | -4/Warlord | Opened Warlord's prototype stash 21803 | -4/Warlord | Warlord's base attacked by MAIN.C 21805 | -4/Warlord | Found Prototype Device 21805 | -4/Warlord | Identified Exp. Cloaking Device 21816 | -4/Warlord | Found Prototype Device 21816 | -4/Warlord | Identified Exp. Focal Shield 21825 | -4/Warlord | Found Prototype Processor 21825 | -4/Warlord | Identified Exp. Target Analyzer 21834 | -4/Warlord | Found Prototype Reactor 21834 | -4/Warlord | Identified Vortex Chain Reactor 21933 | -4/Warlord | Learned Testing security intel 21933 | -4/Warlord | Learned Armory fabricator intel 21933 | -4/Warlord | Learned Quarantine trap positions 21986 | -4/Warlord | Found Prototype Launcher 21986 | -4/Warlord | Identified Vortex Catalyst Activator 21990 | -4/Warlord | Found Prototype Energy Cannon 21990 | -4/Warlord | Identified Vortex Cannon 22153 | -4/Warlord | Warlord forces counterattacked 22156 | -4/Warlord | Spotted Executioner 22164 | -4/Warlord | Spotted Executioner 22182 | -4/Warlord | Spotted Striker 22478 | -4/Warlord | Warlord base infiltrated, sounded retreat 22479 | -4/Warlord | Enhanced Grunt warped into view 22479 | -4/Warlord | Enhanced Grunt warped into view 22479 | -4/Warlord | Enhanced Grunt warped into view 22479 | -4/Warlord | Enhanced Demolisher warped into view 22479 | -4/Warlord | Enhanced Demolisher warped into view 22479 | -4/Warlord | Enhanced Demolisher warped into view 22525 | -4/Warlord | Spotted B-90 Cyclops 22534 | -4/Warlord | Spotted B-86 Titan 22564 | -4/Warlord | Spotted Striker 22573 | -4/Warlord | Allies destroyed Striker 22575 | -4/Warlord | Spotted Executioner 22605 | -4/Warlord | Spotted Striker 22618 | -4/Warlord | Spotted Striker 22647 | -4/Warlord | Spotted Striker 22652 | -4/Warlord | Spotted Executioner 22660 | -4/Warlord | Destroyed Striker 22705 | -4/Warlord | Spotted Striker 22758 | -4/Warlord | Discovered new exit (range 13) 22792 | -4/Warlord | Identified exit to Proximity Caves 22793 | -4/Warlord | Entered Proximity Caves 23582 | -3/Proximity Caves | Discovered new exit (range 5) 23587 | -3/Proximity Caves | Identified exit to Research 23838 | -3/Proximity Caves | System corruption reached 10% 23840 | -3/Proximity Caves | Entered Research 23840 | -3/Research | Evolved 2 slots: Power x1, Weapon x1 23841 | -3/Research | Identified exit to Research 23842 | -3/Research | Loaded intel: 23 terminal locations 23909 | -3/Research | Discovered exit to Research (range 20) 24005 | -3/Research | Incoming investigation squad redirected 24139 | -3/Research | Fabricated Lgt. Regenerative Plating (x1) 24165 | -3/Research | Build established: Scavenger-Skirmisher 24266 | -3/Research | Zion Light squad teleported in 24743 | -3/Research | Zion Recon squad teleported in 25032 | -3/Research | Discovered new exit (range 4) 25100 | -3/Research | Identified exit to Quarantine 25275 | -3/Research | Found Prototype Device 25275 | -3/Research | Identified Exp. Thermal Defense Suite 25337 | -3/Research | Build established: Scavenger-Tank 25378 | -3/Research | Terminal network hard line cut 25549 | -3/Research | Entered Quarantine 25550 | -3/Quarantine | Loaded intel: 34 trap records 25692 | -3/Quarantine | Found Alien Artifact 25692 | -3/Quarantine | Identified Core Reset Matrix 25692 | -3/Quarantine | Used Core Reset Matrix 25696 | -3/Quarantine | Detected hypermatrix surge 25696 | -3/Quarantine | Sensed 12 artifacts in vicinity 25862 | -3/Quarantine | Found Sigix Broadsword 25906 | -3/Quarantine | Found Phase Armor 26253 | -3/Quarantine | Found Core Stripper 26353 | -3/Quarantine | Cryocooling Duct disabled 26368 | -3/Quarantine | Ambient heat levels rising (+20) 26368 | -3/Quarantine | Non-combat units ordered to evacuate 26494 | -3/Quarantine | Spotted Fortress 26502 | -3/Quarantine | Destroyed Fortress 26526 | -3/Quarantine | Found Prototype Device 26526 | -3/Quarantine | Identified Exp. Force Field 26530 | -3/Quarantine | Found Prototype Reactor 26530 | -3/Quarantine | Identified Vortex Chain Reactor 26537 | -3/Quarantine | Found Prototype Protection 26537 | -3/Quarantine | Identified Centrium Heavy Armor Plating 26543 | -3/Quarantine | Found Prototype Device 26543 | -3/Quarantine | Identified Exp. EM Disruption Field 26549 | -3/Quarantine | Found Prototype Device 26549 | -3/Quarantine | Identified Thermal Barrier 26717 | -3/Quarantine | Found Unknown Protection 26717 | -3/Quarantine | Identified Hvy. Insulated Plating 26776 | -3/Quarantine | Found Vortex Chain Reactor 26831 | -3/Quarantine | Terminal network hard line cut 26880 | -3/Quarantine | Discovered new exit (range 6) 26886 | -3/Quarantine | Identified exit to Section 7 26894 | -3/Quarantine | Entered Section 7 26895 | -3/Section 7 | Sensed 24 artifacts in vicinity 26943 | -3/Section 7 | Found Core Reset Matrix 26945 | -3/Section 7 | Sensed 23 artifacts in vicinity 26989 | -3/Section 7 | Build established: Mutant 27051 | -3/Section 7 | Spotted S7 Guard 27078 | -3/Section 7 | Found Integrated Thermoelectric Network 27078 | -3/Section 7 | Installed Integrated Thermoelectric Network, gained heat-energy exchange potential 27110 | -3/Section 7 | Destroyed S7 Guard 27158 | -3/Section 7 | Retrieved Zion intel report: Emergency Access 27387 | -3/Section 7 | Build established: Alien-Mutant 27671 | -3/Section 7 | First assault squad dispatched 27814 | -3/Section 7 | Found Spacefold Activator 27948 | -3/Section 7 | Retrieved Zion intel report: Guard Positions 28221 | -3/Section 7 | Terminal network hard line cut 28249 | -3/Section 7 | Integrated with Sigix Exoskeleton 28361 | -3/Section 7 | Spotted Executioner 28362 | -3/Section 7 | Spotted Executioner 28375 | -3/Section 7 | Core integrity fell below 50% 28402 | -3/Section 7 | Spotted B-99 Colossus 28471 | -3/Section 7 | Found LRC Energy Well 28471 | -3/Section 7 | Installed LRC Energy Well, increased energy storage capacity (+250) 28528 | -3/Section 7 | Build established: Alien-Sigix 28562 | -3/Section 7 | Spotted Striker 28574 | -3/Section 7 | Spotted Executioner 28581 | -3/Section 7 | Spotted Executioner 28601 | -3/Section 7 | Spotted Investigator 28602 | -3/Section 7 | Sigix Exoskeleton integrity reduced to 80% 28605 | -3/Section 7 | Scanned by Researcher 28606 | -3/Section 7 | Intercept squad dispatched 28612 | -3/Section 7 | Core integrity fell below 20% 28615 | -3/Section 7 | Spotted Alpha 7 28615 | -3/Section 7 | Spotted Tracker 28615 | -3/Section 7 | Spotted Tracker 28616 | -3/Section 7 | Spotted Alpha 7 28618 | -3/Section 7 | System corruption reached 10% 28633 | -3/Section 7 | Spotted Executioner 28634 | -3/Section 7 | Spotted Executioner 28642 | -3/Section 7 | Sigix Exoskeleton integrity reduced to 60% 28645 | -3/Section 7 | Spotted Combat Programmer 28648 | -3/Section 7 | Found Transdimensional Reconstructor 28650 | -3/Section 7 | Found Hpw. Transdimensional Reconstructor 28650 | -3/Section 7 | Warped through subspace 28651 | -3/Section 7 | Warped through subspace 28651 | -3/Section 7 | Destroyed by G-73 Enforcer with Heavy Laser Last Messages --------------- 28622_ Slug penetrates Construction Supplies. 28623_ Acquired Sigix Sheargun. 28625_ P-80 Master resets Striker, system corruption cleaned. 28625_ Penetrated by Slug. 28626_ Slug penetrates Thrusters. 28638_ System corrupted: Sigix Exoskeleton stumbles. 28642_ Exo-853F: "Integrity reduced to 60%, stability outside optimal range." 28644_ Sealed Heavy Doors breached. 28647_ Dropped Graviton Cannon. 28648_ Acquired Transdimensional Reconstructor. 28649_ System corrupted: Heat flow error (+256). 28650_ Acquired Hpw. Transdimensional Reconstructor. 28650_ Warped through subspace. 28650_ W-44 Eye sends out distress signal. 28651_ Acquired 7 matter. 28651_ Warped through subspace. 28651_ Penetrated by Slug. 28651_ Slug penetrates Construction Supplies. 28651_ Construction Supplies damaged. Map ----- +----------------------------------------------------+ | #??????????????????############################# | | ########???????????############################# | | # ?#????????############################## | | # """ #???????############################### | | * # """ #???????############################### | | # """ #???????############################### | | # #???################### ############## | | [ # """ #???#"""""""""" """"""""""#! | | ### """ #???#" """""""""#! | | + """ #???#" " ## | | # #?###" | | ####+#######T# E"" | | """ | | ##### !!! g " "" | | ?# ######### h" "" | | "" # #???????#" " " "" | | R # #???????#" " "" | | "" + #???????#" " " " """ | | "" # #???????#" """ " "" | | # #???????#" " " " """" | | ###?# #???????#" " " g | | ????# #??????##" " """"""" | | ????# #???????#" """""" " g g """""" | | ????# #???????#" """"""""" "gg """"""" | | ????# #??????##" """""" g | | ##### #??????## X E | | #??????##" | | #????####" """""" mlmg | | ########???#####" """"""""" g " | | ??????????######" """"""7 b g""""" | | ?????????#######" m """ "" | | ?????????#######" l """"" | | ????????########" 7 g "g | | ???????#########" i c" | | ???????#########" """ | | ??????? #####" w "" gg T | | ?????? #####" """" | | ?????? ##### """" "" | | ?????? """ #####" """" "" """ "" | | ?????? """ #####"" """ " | | ?????? """ #####""" " " "" """""""" | | ????? #####""" """" " """"""""" | | ?????? ##### """ """ "" """"""""" | | ??????##+##### # """""" """ | | ?????? / ! """"" | | ????? / %!%! "" | | ?????? / ]]!!!* """"" " | | ????? / !!]] """"" | | ??????######## # !!! """ | | ?????? #########""" !] """" | +----------------------------------------------------+ Best States ------------- Heat Dissipation 106 Energy Generation 75 Energy Capacity 1390 Matter Stores 501 Matter Capacity 800 Sight Range 16 Robot Scan Range 16 Terrain Scan Range 20 Terrain Scan Density 210 Jamming Range 14 Armor Coverage 1200 Resistance: KI 50 Resistance: TH 50 Resistance: EX 50 Resistance: EM 75 Resistance: I 50 Resistance: S 50 Resistance: P 50 Weapon Shielding 100 Weapon Cycling 15 Evasion (%) 64 Targeting Accuracy 16 Target Analysis 10 Recoil Reduction 6 Particle Charging 25 Kinecelleration 30 Offensive Hacking 10 Item Schematics ----------------- None Robot Schematics ------------------ None Fabricated ------------ Lgt. Regenerative Plating | x1 | -3/Research Alien Tech Used ----------------- Core Reset Matrix Sigix Broadsword Phase Armor Core Stripper Integrated Thermoelectric Network Spacefold Activator Sigix Exoskeleton Sigix Sheargun LRC Energy Well High-powered Transdimensional Reconstructor Transdimensional Reconstructor Achievements -------------- None Challenges ------------ None Game ------ Seed DisposableAlloySpoofer Manual? 0 Play Time 04:04:08 Cumulative 164.1 hours Start 2023.07.12 @ 17:35:20 End 2023.07.15 @ 17:08:16 Sessions 21 Manual Loads 0 Difficulty Rogue Special Mode None Game No. 210 Rogue 210 Adventurer 0 Explorer 0 Win Type - Total 3 Types 2/0/0/1/0/0/0/0/0 Lore% 64 Gallery% 73 Achievement% 56 Wizard Run 0 Options --------- ASCII 0 Keyboard 0 Movement Numpad Keybinds 0 Fullscreen 1 Font 18/SmallcapsGlow Map View 76x50 Tactical HUD 1 Map Filters NONE Filters NONE Steam 1 RUN: 6c5ed86c-5ba7-4ea1-b4a7-7ec3b0677928